bitfinex/quotes_ETHUSD_20240828
["timestamp","ask_amount","ask_price","bid_price","bid_amount"]
[1724807810297,4.07608,2453.4,2453.0,2.53096]
[1724807810503,4.0759,2453.5,2453.0,2.2636]
[1724807810792,4.07605,2453.4,2453.0,2.2636]
[1724807810945,4.07607,2453.4,2453.0,2.6736]
[1724807811250,4.07631,2453.2,2453.0,0.41]
[1724807811606,8.15223,2453.4,2453.0,0.41]
[1724807811830,8.15223,2453.4,2452.8,0.41]
[1724807812031,8.15223,2453.4,2452.8,0.65333]
[1724807812032,4.07614,2453.3,2452.8,0.65333]
[1724807812344,4.07632,2453.2,2452.8,0.65333]
[1724807812945,8.15222,2453.4,2452.8,0.65333]
[1724807813101,4.0761,2453.4,2452.8,0.65333]
[1724807813303,8.1528,2453.2,2452.8,0.41]
[1724807813503,4.0764,2453.2,2452.8,0.41]
[1724807813705,4.07673,2453.0,2452.9,0.41]
[1724807814744,4.07673,2453.0,2452.4,2.4333]
[1724807814745,4.07673,2453.0,2452.5,0.41]
[1724807814931,8.15287,2453.2,2452.5,3.41]
[1724807815131,4.07642,2453.2,2452.5,3.41]
[1724807815452,0.06696763,2453.1,2452.9,0.41]
[1724807815612,4.07609,2453.4,2452.9,0.41]
[1724807815812,4.14311763,2453.3,2452.9,0.41]
[1724807816472,0.06696763,2453.3,2452.9,0.41]
[1724807816611,0.06696763,2453.3,2452.9,0.6877134]
[1724807817448,4.07665,2453.0,2452.7,0.41]
[1724807817827,0.06696763,2452.9,2452.7,0.41]
[1724807818350,4.07651,2453.1,2452.7,0.41]
[1724807818527,0.06696763,2452.8,2452.6,0.41]
[1724807818723,4.07674,2453.0,2452.6,0.93856]
[1724807818930,0.06696763,2452.7,2452.6,0.93856]
[1724807819558,4.07665,2453.0,2452.6,0.93856]
[1724807820055,0.06696763,2452.9,2452.6,0.93856]
[1724807820419,4.14387763,2452.9,2452.5,0.41]
[1724807820741,4.07705,2452.8,2452.5,0.41]
[1724807821260,0.06696763,2452.7,2452.5,0.41]
[1724807821428,0.06696763,2452.7,2452.1,9.65460909]
[1724807821429,0.06696763,2452.7,2452.2,0.41]
[1724807821625,4.0768,2453.0,2452.2,1.37546091]
[1724807821626,4.07698,2452.8,2452.2,1.37546091]
[1724807821865,4.14415763,2452.7,2452.2,1.37546091]
[1724807822038,4.0773,2452.6,2452.2,1.37546091]
[1724807822244,2.4836,2452.9,2451.8,12.42]
[1724807822245,4.07788,2452.3,2451.8,0.41]
[1724807822445,4.07814,2452.1,2451.7,2.2856]
[1724807822757,2.4836,2452.4,2451.5,7.36900909]
[1724807822758,4.07855,2451.9,2451.5,7.36900909]
[1724807822952,4.07893,2451.7,2450.9,37.2941]
[1724807823129,4.07922,2451.5,2450.9,2.7041]
[1724807823334,4.07908,2451.6,2451.0,1.00731091]
[1724807823335,4.07931,2451.4,2451.0,1.00731091]
[1724807823677,0.06630339,2451.4,2451.0,1.41731091]
[1724807823832,0.06630339,2451.4,2451.1,0.37114109]
[1724807824033,8.15817,2451.6,2451.1,0.37114109]
[1724807824228,4.14479164,2451.5,2451.1,0.37114109]
[1724807824758,4.07939,2451.4,2451.1,0.37114109]
[1724807824967,0.0656133,2451.4,2451.0,0.41]
[1724807825259,8.1569,2452.0,2451.2,0.41]
[1724807825457,4.14170067,2451.9,2451.4,0.41]
[1724807826502,0.06321067,2451.9,2451.4,0.41]
[1724807827281,2.3239,2452.2,2451.4,0.41]
[1724807827282,4.07865,2451.8,2451.4,0.41]
[1724807827455,4.07897,2451.6,2451.2,0.41]
[1724807827658,0.06321067,2451.5,2451.2,0.41]
[1724807828099,4.07875,2451.8,2451.2,0.41]
[1724807828270,0.06321067,2451.4,2451.3,1.5157507]
[1724807828470,4.07841,2452.0,2451.3,1.5157507]
[1724807828471,4.07864,2451.8,2451.3,1.5157507]
[1724807828791,0.06321067,2451.7,2451.3,1.43417091]
[1724807829117,4.07864,2451.8,2451.3,1.43417091]
[1724807829257,4.07841,2452.0,2451.3,1.43417091]
[1724807829258,0.06321067,2451.6,2451.3,1.43417091]
[1724807829461,4.07841,2452.0,2451.3,1.43417091]
[1724807829699,0.06321067,2451.9,2451.4,3.6515754]
[1724807830264,4.14170067,2451.9,2451.4,3.6515754]
[1724807831976,0.06321067,2451.9,2451.4,3.6515754]
[1724807832174,4.07865,2451.8,2451.4,3.6515754]
[1724807832575,4.07865,2451.8,2451.2,0.41]
[1724807832791,4.07899,2451.6,2451.2,0.41]
[1724807833100,2.3145,2451.7,2451.2,0.41]
[1724807833302,8.15869,2451.4,2451.2,0.41]
[1724807833520,4.07946,2451.3,2451.2,0.41]
[1724807833722,0.06331296,2451.6,2450.9,0.41]
[1724807833723,4.07899,2451.6,2450.9,0.41]
[1724807833936,4.07981,2451.1,2450.3,7.36900909]
[1724807834084,4.07981,2451.1,2450.4,37.7318]
[1724807834440,0.06312116,2451.0,2450.4,37.7318]
[1724807834591,0.06312116,2451.0,2450.5,4.18318]
[1724807835022,0.06312116,2451.0,2450.5,0.41]
[1724807835617,0.00465067,2451.0,2450.6,0.08160974]
[1724807835819,0.05881316,2451.0,2450.8,0.41]
[1724807835979,4.07915,2451.5,2451.0,0.41]
[1724807836379,0.06102855,2451.4,2451.0,0.41]
[1724807836628,4.07915,2451.5,2451.0,0.41]
[1724807837079,4.07934,2451.4,2451.0,0.41]
[1724807837283,0.06102855,2451.4,2451.0,0.41]
[1724807838095,4.07897,2451.6,2451.0,0.41]
[1724807838283,0.06102855,2451.3,2451.0,0.41]
[1724807838628,4.07897,2451.6,2451.0,0.41]
[1724807839105,0.06046581,2451.5,2451.0,0.41]
[1724807840828,4.13960581,2451.5,2451.0,0.41]
[1724807841040,8.21883581,2451.5,2451.0,1.57170625]
[1724807841398,2.37886581,2451.5,2450.8,0.41]
[1724807841593,4.07995,2451.1,2450.5,3.41]
[1724807841810,4.08,2451.0,2450.6,0.61121949]
[1724807842013,4.08031,2450.8,2450.1,2.2769]
[1724807842230,4.08031,2450.8,2450.2,0.22769]
[1724807842617,0.06010773,2450.7,2450.3,0.41]
[1724807843022,4.07973,2451.2,2450.3,0.41]
[1724807843023,4.07998,2451.0,2450.3,0.41]
[1724807843228,0.05950648,2450.6,2450.3,0.41]
[1724807843428,4.07998,2451.0,2450.3,0.41]
[1724807843627,0.05950648,2450.5,2450.4,0.78193069]
[1724807843830,4.07998,2451.0,2450.4,0.78193069]
[1724807844324,26.78505891,2454.8,2450.4,0.78193069]
[1724807844325,0.05950648,2450.9,2450.5,2.76850786]
[1724807844661,0.05950648,2450.9,2450.6,3.41]
[1724807844809,4.07954,2451.3,2450.6,38.41]
[1724807845014,0.05937852,2450.8,2450.6,38.41]
[1724807845201,4.07964,2451.2,2450.8,0.41]
[1724807845402,4.07947,2451.3,2450.8,0.41]
[1724807845629,0.05937852,2451.1,2450.8,4.42493556]
[1724807845826,5.00124146,2452.4,2450.8,4.42493556]
[1724807845827,4.07859,2451.9,2450.9,2.35850189]
[1724807846043,0.05937852,2451.0,2450.9,2.35850189]
[1724807846341,4.07721,2452.7,2451.3,2.6869]
[1724807846550,4.07721,2452.7,2451.7,0.41]
[1724807846703,2.3184,2452.8,2451.8,0.0815631]
[1724807846704,0.05977515,2452.6,2451.8,0.0815631]
[1724807846909,4.07714,2452.7,2451.9,0.41]
[1724807847140,0.05977515,2452.5,2451.9,3.41]
[1724807847454,4.07692,2452.9,2452.0,3.92382198]
[1724807847606,4.07692,2452.9,2451.9,3.4915631]
[1724807847607,0.05977515,2452.4,2452.1,0.49155308]
[1724807847806,4.07698,2452.8,2452.1,0.49155308]
[1724807848000,0.05977515,2452.3,2452.1,0.49155308]
[1724807848226,4.07698,2452.8,2452.2,3.95915531]
[1724807848802,4.07619,2453.3,2452.2,6.32365531]
[1724807848803,4.07654,2453.1,2452.2,6.32365531]
[1724807849093,4.07558,2453.7,2452.7,0.41]
[1724807849249,4.07565,2453.6,2452.8,0.08152742]
[1724807849448,4.07558,2453.7,2452.8,0.08152742]
[1724807850155,4.07624,2453.3,2452.7,3.0]
[1724807850342,4.07624,2453.3,2452.6,2.3645]
[1724807850970,8.00503453,2453.9,2452.6,2.44604169]
[1724807850971,2.4913,2453.9,2452.6,2.44604169]
[1724807851168,4.07618,2453.3,2452.7,0.65460417]
[1724807851443,4.07585,2453.5,2452.4,3.0]
[1724807851638,4.07606,2453.4,2452.2,2.4636]
[1724807851847,4.07626,2453.3,2452.3,0.08154756]
[1724807852067,0.3261035,2453.6,2452.3,38.33606232]
[1724807852346,4.07616,2453.3,2452.4,0.41]
[1724807852547,2.3044,2453.7,2452.6,2.4636]
[1724807852548,6.37998,2453.7,2452.6,2.4636]
[1724807852847,4.07583,2453.5,2452.7,0.33604245]
[1724807853049,4.07583,2453.5,2452.7,0.25451367]
[1724807853288,4.07616,2453.3,2452.7,0.25451367]
[1724807853656,4.07583,2453.5,2452.7,0.25451367]
[1724807854049,4.07523,2453.9,2452.8,0.08153604]
[1724807854248,5.09485035,2454.7,2452.8,0.08153604]
[1724807854249,4.07488,2454.1,2453.2,0.41]
[1724807854477,4.07507,2454.0,2453.3,0.08151108]
[1724807854697,2.3073,2454.3,2453.3,1.07029219]
[1724807854698,4.07468,2454.2,2453.3,1.07029219]
[1724807854888,8.14913,2454.3,2453.3,1.07029219]
[1724807855073,4.07454,2454.3,2453.4,0.40702922]
[1724807855282,4.07423,2454.5,2453.5,0.08151075]
[1724807855595,4.07423,2454.5,2453.6,2.2963]
[1724807855746,4.712563,2454.4,2453.6,2.2963]
[1724807855989,8.14881,2454.4,2453.6,2.2963]
[1724807856193,4.07403,2454.6,2453.6,2.78780348]
[1724807856389,4.07375,2454.8,2453.7,9.50251488]
[1724807856689,4.07366,2454.8,2453.8,3.52958748]
[1724807856917,4.07366,2454.8,2453.9,3.0]
[1724807857137,4.0739,2454.7,2453.9,3.0]
[1724807857322,4.0739,2454.7,2454.0,0.73444624]
[1724807858130,4.07366,2454.8,2454.0,0.73444624]
[1724807858433,5.3715,2455.3,2454.0,0.65295875]
[1724807858434,4.07322,2455.1,2454.0,0.65295875]
[1724807858594,4.07424,2454.5,2453.9,3.0]
[1724807858791,4.07464,2454.2,2453.8,0.41]
[1724807859205,8.14944,2454.2,2453.8,0.41]
[1724807859525,11.88674453,2454.6,2453.8,0.41]
[1724807859526,4.07504,2454.0,2453.8,0.41]
[1724807859746,4.07504,2454.0,2452.6,7.36900909]
[1724807859747,5.51373453,2454.3,2453.1,2.808]
[1724807859889,4.07555,2453.7,2453.1,2.808]
[1724807860431,4.07596,2453.5,2453.1,0.41]
[1724807860729,4.07574,2453.6,2453.1,0.41]
[1724807861053,0.06599852,2453.4,2453.1,0.41]
[1724807861255,8.15176,2453.5,2453.1,0.41]
[1724807861460,0.06599852,2453.3,2452.8,0.41]
[1724807861609,8.15178,2453.5,2452.8,3.6908]
[1724807861809,0.06589654,2453.2,2452.8,3.6908]
[1724807862063,0.06589654,2453.2,2452.7,2.398]
[1724807862064,4.07631,2453.2,2452.7,2.398]
[1724807862229,4.07622,2453.3,2452.7,2.398]
[1724807862430,0.06584547,2453.1,2452.8,0.08153448]
[1724807862640,0.06581994,2453.2,2452.8,0.73948793]
[1724807862826,8.15115,2453.7,2452.8,0.73948793]
[1724807863043,0.06581994,2453.1,2452.8,0.73948793]
[1724807863256,4.07556,2453.7,2452.8,0.73948793]
[1724807863452,4.07556,2453.7,2453.0,0.41]
[1724807863658,4.14154994,2453.6,2453.0,0.41]
[1724807863964,4.07594,2453.5,2453.0,0.41]
[1724807864131,4.07594,2453.5,2452.5,7.36900909]
[1724807864132,8.1534,2453.0,2452.5,7.77900909]
[1724807864455,8.15345,2453.0,2452.6,4.31685091]
[1724807864640,0.06565395,2452.9,2452.6,4.72685091]
[1724807865459,4.07713,2452.8,2452.6,0.41]
[1724807865704,2.3379,2453.3,2452.0,2.3895]
[1724807865705,4.07739,2452.6,2452.0,2.3895]
[1724807865835,4.07739,2452.6,2452.0,2.66945]
[1724807866167,0.06514311,2452.5,2452.0,2.3895]
[1724807866316,0.06514311,2452.5,2451.8,0.49156613]
[1724807866519,4.07717,2452.7,2451.9,2.8452]
[1724807866759,0.06488762,2452.6,2452.0,0.29267661]
[1724807866918,0.06488762,2452.6,2452.0,0.78423608]
[1724807867119,4.07699,2452.8,2452.0,0.78423608]
[1724807867460,4.14163487,2452.7,2452.0,0.70267661]
[1724807867632,4.14163487,2452.7,2452.0,0.41]
[1724807868233,4.14163487,2452.7,2452.0,0.4084769]
[1724807868465,8.21890487,2452.7,2452.0,0.4084769]
[1724807868760,4.0773,2452.6,2452.0,0.4084769]
[1724807869131,4.07773,2452.4,2452.0,0.4084769]
[1724807869349,8.15613,2452.2,2451.8,0.4069538]
[1724807869548,4.07805,2452.2,2451.8,0.4069538]
[1724807869727,0.06442765,2452.1,2451.8,0.4069538]
[1724807870363,0.06442765,2452.1,2451.5,2.3572]
[1724807870364,4.07833,2452.0,2451.5,2.3572]
[1724807870537,0.06442765,2452.1,2451.5,2.3572]
[1724807870865,4.07797,2452.2,2451.5,2.3572]
[1724807871105,4.07782,2452.3,2451.6,0.41]
[1724807871270,0.0625498,2452.2,2451.7,0.08156717]
[1724807871469,8.8520475,2452.4,2451.6,0.41]
[1724807871694,8.8520475,2452.4,2451.6,0.49156718]
[1724807871695,0.0625498,2452.3,2451.6,0.49156718]
[1724807871996,0.0625498,2452.3,2451.6,0.80493167]
[1724807872162,0.0625498,2452.3,2451.6,3.80493167]
[1724807872362,6.55748,2452.8,2451.6,3.80493167]
[1724807872568,0.06230695,2452.2,2451.8,0.41]
[1724807872804,8.15479,2452.6,2451.9,0.08155822]
[1724807873100,0.06230695,2452.5,2452.0,2.3689]
[1724807873400,4.07707,2452.8,2452.1,0.08155287]
[1724807873607,0.06253702,2452.4,2452.1,0.08155287]
[1724807873909,4.07707,2452.8,2452.1,0.08155287]
[1724807873910,0.06253702,2452.3,2452.1,0.08155287]
[1724807874104,4.07714,2452.7,2452.1,0.08155287]
[1724807874267,0.06253702,2452.6,2452.1,0.45265084]
[1724807874677,4.07707,2452.8,2452.1,0.45265084]
[1724807874895,9.5569,2453.1,2452.0,2.3689]
[1724807874896,0.06280539,2452.7,2452.0,2.3689]
[1724807875105,4.07756,2452.5,2452.0,2.3689]
[1724807875416,4.14047539,2452.4,2452.0,2.3689]
[1724807875871,4.0783,2452.0,2451.9,0.41]
[1724807876073,4.07821,2452.1,2451.6,0.41]
[1724807876386,0.06286929,2452.0,2451.6,0.41]
[1724807876582,4.14124929,2452.0,2451.6,0.41]
[1724807876789,4.0794,2451.4,2450.8,2.6702]
[1724807877116,4.07966,2451.2,2450.8,2.2602]
[1724807877414,4.07966,2451.2,2450.1,5.51373453]
[1724807877415,4.07998,2451.0,2450.2,2.2602]
[1724807877625,4.07998,2451.0,2450.2,2.81157345]
[1724807877776,0.06189785,2450.9,2450.2,2.2602]
[1724807878271,4.14215785,2450.9,2450.2,2.6702]
[1724807878471,0.06189785,2450.9,2450.2,2.6702]
[1724807878695,0.06189785,2450.9,2450.2,2.93722]
[1724807878914,0.06189785,2450.9,2450.3,3.08161625]
[1724807879100,4.07922,2451.5,2450.3,3.49161625]
[1724807879311,4.07972,2451.2,2450.5,0.41]
[1724807879727,0.05855968,2451.1,2450.5,0.41]
[1724807880025,0.05855968,2451.1,2450.5,0.49160822]
[1724807880550,0.05855968,2451.1,2450.5,3.49160822]
[1724807880830,4.07931,2451.4,2450.7,0.41]
[1724807881033,0.05895633,2451.0,2450.8,0.08159698]
[1724807881331,1.08938345,2451.7,2450.5,3.081597]
[1724807881332,0.05895633,2450.9,2450.5,3.081597]
[1724807881630,4.07948,2451.3,2450.5,0.081597]
[1724807881834,0.05895633,2450.8,2450.5,0.081597]
[1724807882035,4.07923,2451.5,2450.5,0.081597]
[1724807882350,4.07923,2451.5,2450.5,11.20855579]
[1724807882516,0.05713592,2451.4,2450.7,5.92263453]
[1724807882829,4.079,2451.6,2450.8,3.87328345]
[1724807883050,4.07931,2451.4,2450.8,0.87328345]
[1724807883333,4.07931,2451.4,2450.7,3.4089]
[1724807883523,0.05713592,2451.3,2450.7,3.4089]
[1724807883719,0.05713592,2451.3,2450.8,0.08159623]
[1724807883911,4.0793,2451.4,2450.7,3.4089]
[1724807884229,0.05713592,2451.3,2450.9,0.4089]
[1724807884541,4.13668592,2451.3,2450.9,0.4089]
[1724807884892,4.07981,2451.1,2450.6,2.2602]
[1724807885095,0.05731502,2451.0,2450.5,7.71805879]
[1724807885393,4.07964,2451.2,2450.5,7.71805879]
[1724807885394,4.07964,2451.2,2450.6,1.22159588]
[1724807885599,4.07964,2451.2,2450.6,0.4089]
[1724807885902,0.05723827,2451.1,2450.6,0.4089]
[1724807886153,0.05723827,2451.1,2450.3,15.1863]
[1724807886154,4.08025,2450.9,2450.3,15.1863]
[1724807886363,0.05723827,2451.1,2450.4,3.0]
[1724807886566,0.05709754,2450.8,2450.5,1.81863]
[1724807886779,4.07987,2451.1,2450.5,1.81863]
[1724807887286,4.13707754,2451.0,2450.5,1.81863]
[1724807887743,4.13707754,2451.0,2450.4,3.4089]
[1724807887744,0.05709754,2451.0,2450.4,0.4089]
[1724807887952,4.08058,2450.7,2450.4,0.4089]
[1724807888247,4.08103,2450.4,2450.0,2.4245]
[1724807888442,8.570213,2450.4,2449.9,0.4089]
[1724807888681,4.08156,2450.1,2449.5,2.2885]
[1724807888885,8.16312,2450.1,2449.5,2.51735]
[1724807889084,4.08156,2450.1,2449.5,0.22885]
[1724807889254,4.13836647,2450.0,2449.2,0.4089]
[1724807889956,0.05672647,2450.0,2449.2,0.4089]
[1724807890559,0.05672647,2450.0,2449.3,0.08164578]
[1724807890760,4.0812,2450.3,2449.4,0.4089]
[1724807890980,0.05551053,2449.9,2449.4,0.4089]
[1724807891189,4.0812,2450.3,2449.4,0.49054189]
[1724807891400,0.05551053,2449.8,2449.4,0.49054189]
[1724807891869,4.0809,2450.5,2449.5,2.6955]
[1724807892188,4.0809,2450.5,2449.6,3.76824452]
[1724807892189,4.08098,2450.4,2449.6,3.76824452]
[1724807892365,0.05551053,2450.4,2449.6,3.76824452]
[1724807894151,4.08133,2450.2,2449.6,3.76824452]
[1724807894400,0.05551053,2450.4,2449.6,3.4089]
[1724807894591,4.08067,2450.6,2449.6,3.4089]
[1724807894798,4.08143,2450.2,2449.6,3.4089]
[1724807895405,4.08182,2449.9,2449.4,0.4089]
[1724807895616,4.08206,2449.8,2448.9,3.32632774]
[1724807896297,4.13764053,2449.7,2448.9,3.32632774]
[1724807896611,4.13764053,2449.7,2449.0,1.47843368]
[1724807897195,4.13764053,2449.7,2449.0,4.47843368]
[1724807897795,0.05551053,2449.7,2449.1,0.08165412]
[1724807898105,4.08182,2449.9,2449.1,0.82940567]
[1724807898309,0.05463975,2449.6,2449.1,0.82940567]
[1724807898515,4.08201,2449.8,2449.1,0.82940567]
[1724807898876,0.05463975,2449.7,2449.1,0.82940567]
[1724807899111,0.05463975,2449.7,2449.2,0.93968394]
[1724807899411,0.647646,2450.2,2449.3,0.08164344]
[1724807899412,4.08141,2450.2,2449.3,0.08164344]
[1724807899614,0.05465256,2449.6,2449.3,0.55855133]
[1724807899825,6.47637,2450.4,2449.4,2.4929]
[1724807899826,4.08113,2450.3,2449.4,2.4929]
[1724807899980,4.08113,2450.3,2449.5,0.38678617]
[1724807900179,4.13595256,2450.2,2449.5,0.71404513]
[1724807900601,0.05465256,2450.2,2449.6,0.0816414]
[1724807900806,6.40415,2450.7,2449.6,6.34129868]
[1724807901025,4.08063,2450.6,2449.6,6.34129868]
[1724807901201,0.05465256,2450.6,2449.7,4.37354438]
[1724807901403,0.05465256,2450.6,2449.8,0.08162579]
[1724807901609,4.13529256,2450.6,2449.8,0.08162579]
[1724807901789,0.05465256,2450.6,2449.8,0.08162579]
[1724807901993,4.08024,2450.9,2450.0,0.4089]
[1724807902211,0.05465256,2450.5,2450.1,0.90618191]
[1724807902381,4.08008,2451.0,2450.1,1.31508191]
[1724807902581,0.05465256,2450.4,2450.2,0.4089]
[1724807902883,6.4458,2451.1,2450.3,0.0816102]
[1724807903675,4.08071,2450.6,2450.0,3.0]
[1724807903878,2.366,2451.1,2450.0,3.0]
[1724807903879,4.08085,2450.5,2450.0,3.0]
[1724807904113,2.366,2451.1,2449.8,0.49052986]
[1724807904114,4.08076,2450.6,2449.8,0.49052986]
[1724807904518,4.08052,2450.7,2449.8,0.49052986]
[1724807904680,4.08123,2450.3,2449.8,0.4089]
[1724807905089,4.08123,2450.3,2449.6,3.4089]
[1724807905090,4.08133,2450.2,2449.6,3.4089]
[1724807905316,4.08123,2450.3,2449.6,3.4089]
[1724807905629,0.05639375,2450.2,2449.6,3.4089]
[1724807905783,6.55231,2450.5,2449.7,0.99054]
[1724807905985,0.05639375,2450.1,2449.7,0.99054]
[1724807906221,4.08098,2450.4,2449.8,0.40721765]
[1724807906424,0.05638095,2450.0,2449.8,0.40721765]
[1724807906608,4.08098,2450.4,2449.8,0.40721765]
[1724807906812,0.05638095,2449.9,2449.8,0.40721765]
[1724807906996,4.08114,2450.3,2449.7,0.4089]
[1724807906997,4.08133,2450.2,2449.7,0.4089]
[1724807907217,4.08133,2450.2,2449.6,0.4089]
[1724807907218,0.05638095,2449.9,2449.6,0.4089]
[1724807907530,4.08164,2450.0,2449.6,0.4089]
[1724807907697,0.05599691,2449.8,2449.6,0.4089]
[1724807908044,0.05599691,2449.8,2449.0,5.93811472]
[1724807908045,4.08249,2449.5,2449.0,0.42438019]
[1724807908220,0.05599691,2449.7,2448.4,5.51373453]
[1724807908221,4.08264,2449.4,2448.4,5.51373453]
[1724807908388,4.08264,2449.4,2448.5,3.01072775]
[1724807908584,0.05557437,2449.3,2448.5,3.01072775]
[1724807908822,4.13838437,2449.3,2448.6,0.89490155]
[1724807909024,4.08297,2449.2,2448.6,1.30380155]
[1724807909232,0.05556156,2449.2,2448.6,1.30380155]
[1724807909439,4.08317,2449.1,2448.6,0.4089]
[1724807909947,4.13891156,2449.0,2448.6,0.4089]
[1724807910491,2.46776156,2449.0,2448.3,0.4089]
[1724807910700,2.46776156,2449.0,2447.7,3.61741459]
[1724807910701,6.49651,2448.4,2447.7,3.61741459]
[1724807910910,4.08478,2448.2,2447.4,2.13150971]
[1724807911139,4.08478,2448.2,2447.4,1.06442558]
[1724807911389,0.05273125,2448.1,2447.5,0.0817101]
[1724807911724,0.05273125,2448.1,2447.5,1.50274644]
[1724807911903,4.08401,2448.6,2447.5,0.0817101]
[1724807912416,4.1361222,2448.5,2447.6,1.42098139]
[1724807912730,4.08464,2448.2,2447.4,0.4089]
[1724807912894,6.49684,2448.2,2447.4,0.4089]
[1724807913097,0.05150058,2448.1,2447.4,6.00434629]
[1724807913392,2.4122,2448.5,2447.5,0.60043463]
[1724807913591,0.05150058,2448.0,2447.6,0.08170172]
[1724807913825,2.4122,2448.5,2447.6,0.74217881]
[1724807913826,6.49634,2448.5,2447.6,0.74217881]
[1724807914037,2.4122,2448.5,2447.5,0.60043463]
[1724807914192,4.13420389,2448.4,2447.5,3.68214177]
[1724807915357,0.04978389,2448.4,2447.5,3.68214177]
[1724807915525,0.04978389,2448.4,2447.7,5.92263453]
[1724807915831,4.13246199,2448.3,2447.6,3.44367763]
[1724807915988,4.13246199,2448.3,2447.7,3.0]
[1724807916188,0.04800199,2448.3,2447.7,3.0]
[1724807916536,0.04800199,2448.3,2447.8,0.72606967]
[1724807916834,6.57808,2448.8,2447.8,0.72606967]
[1724807916835,4.08411,2448.6,2447.9,0.4089]
[1724807917031,0.04818153,2448.2,2447.9,0.4089]
[1724807917340,4.08411,2448.6,2447.9,0.4089]
[1724807917537,0.04818153,2448.1,2447.9,0.4089]
[1724807917838,10.66173,2448.8,2447.9,0.4089]
[1724807917999,0.04818153,2448.0,2447.9,1.37376984]
[1724807918199,4.08399,2448.6,2447.9,1.37376984]
[1724807918502,0.04818153,2448.0,2447.9,1.37376984]
[1724807918732,4.08399,2448.6,2447.9,1.37376984]
[1724807919035,0.04818153,2448.5,2447.9,1.37376984]
[1724807919537,0.04818153,2448.5,2447.9,0.4089]
[1724807919741,4.08474,2448.2,2447.9,0.4089]
[1724807919907,8.1688,2448.4,2447.9,0.4089]
[1724807920110,0.04818153,2448.1,2447.9,0.4089]
[1724807920319,4.08397,2448.6,2447.9,0.4089]
[1724807920500,0.04818153,2448.0,2447.9,0.4089]
[1724807920695,4.08397,2448.6,2447.7,0.08170284]
[1724807920696,4.08397,2448.6,2447.8,2.8948]
[1724807921121,0.04830977,2448.5,2447.8,0.4089]
[1724807921322,4.08467,2448.2,2447.8,0.4089]
[1724807921636,4.13304283,2448.1,2447.9,0.4089]
[1724807922015,3.28029457,2448.1,2447.9,0.4089]
[1724807922211,0.04823283,2448.1,2447.9,0.4089]
[1724807922427,4.13304283,2448.1,2447.9,0.4089]
[1724807922739,4.13304283,2448.1,2447.7,0.4089]
[1724807922905,0.04823283,2448.1,2447.7,0.4089]
[1724807923535,4.0853,2447.8,2447.2,7.36900909]
[1724807923736,8.17071,2447.8,2447.1,2.4859]
[1724807924036,4.0858,2447.5,2447.0,7.36900909]
[1724807924242,4.08574,2447.6,2446.8,2.4859]
[1724807924545,4.08574,2447.6,2446.5,5.51373453]
[1724807924546,4.08642,2447.2,2446.6,0.4089]
[1724807924791,4.08648,2447.1,2446.6,0.4089]
[1724807925046,4.08616,2447.3,2445.7,0.84778093]
[1724807925047,4.08688,2446.9,2445.7,0.84778093]
[1724807925253,8.17414,2446.8,2445.8,0.08176592]
[1724807925545,0.04648802,2446.8,2446.0,5.92263453]
[1724807925704,0.04648802,2446.8,2446.1,1.33150745]
[1724807925897,4.08697,2446.8,2446.1,1.24975345]
[1724807926100,0.04648802,2446.7,2446.1,1.24975345]
[1724807926331,0.04648802,2446.7,2446.1,4.24975345]
[1724807926547,0.04648802,2446.7,2446.1,3.4089]
[1724807926548,6.36631,2446.6,2446.1,3.4089]
[1724807926697,2.279,2446.6,2445.8,3.49066467]
[1724807926896,4.08708,2446.8,2446.0,0.4089]
[1724807927131,0.04648802,2446.5,2446.0,0.4089]
[1724807927326,4.08714,2446.7,2446.0,0.4089]
[1724807927529,4.13426802,2446.4,2445.4,7.94833453]
[1724807927805,0.04648802,2446.4,2445.4,7.94833453]
[1724807928027,4.13414802,2446.4,2445.5,0.42449685]
[1724807928229,4.08782,2446.3,2445.6,0.83728314]
[1724807928436,4.08782,2446.3,2445.7,0.4089]
[1724807928638,0.04648802,2446.2,2445.7,0.4089]
[1724807928947,4.08766,2446.4,2445.7,0.4089]
[1724807929104,8.17542,2446.4,2445.7,0.83351831]
[1724807929306,0.04648802,2446.3,2445.7,0.83351831]
[1724807929548,4.13429802,2446.3,2445.7,0.83351831]
[1724807929708,4.08799,2446.2,2445.7,0.4089]
[1724807930247,0.04648802,2446.1,2445.7,0.4089]
[1724807930952,4.08777,2446.4,2445.7,0.4089]
[1724807931111,2.2602,2446.7,2445.7,0.84169584]
[1724807931112,0.04422875,2446.0,2445.7,0.84169584]
[1724807931443,4.08775,2446.4,2445.7,0.84169584]
[1724807931608,0.04267915,2445.9,2445.7,0.84169584]
[1724807931808,4.08775,2446.4,2445.7,0.84169584]
[1724807932013,0.04267915,2445.8,2445.7,0.84169584]
[1724807932209,4.12784658,2446.3,2445.7,0.84169584]
[1724807932453,4.08781,2446.3,2445.7,0.4089]
[1724807932745,0.04003658,2446.2,2445.7,0.4089]
[1724807934453,4.08765,2446.4,2445.7,0.4089]
[1724807934655,4.08784,2446.3,2445.7,0.4089]
[1724807934822,4.12787658,2446.3,2445.7,0.83351831]
[1724807935356,0.04003658,2446.3,2445.7,0.83351831]
[1724807935716,4.08738,2446.6,2445.7,0.83351831]
[1724807935952,0.04003658,2446.2,2445.7,0.83351831]
[1724807936221,4.08753,2446.5,2445.7,0.83351831]
[1724807936421,0.04003658,2446.1,2445.7,0.83351831]
[1724807936658,4.08766,2446.4,2445.7,0.4089]
[1724807936843,0.04003658,2446.0,2445.7,0.4089]
[1724807937047,8.17544,2446.4,2445.7,0.4089]
[1724807937363,0.04003658,2445.9,2445.7,0.4089]
[1724807937570,4.08873,2445.8,2444.8,2.7638]
[1724807937760,4.089,2445.6,2444.8,3.04018]
[1724807937951,4.089,2445.6,2444.8,2.63128]
[1724807938118,4.08958,2445.3,2444.4,2.3549]
[1724807938524,4.08958,2445.3,2444.5,0.4089]
[1724807938723,4.08981,2445.1,2444.7,0.4089]